Cogmind - Beta 13 @@@ ROGUE MODE // 2024.05.02 @ 17:59:19 Player: ThemBee Result: Destroyed by G-47 Trooper with Particle Gun Performance ------------- Evolutions (2) 1000 Regions Visited (6) 1200 Robots Destroyed (79) 395 Value Destroyed (2435) 2435 Prototype IDs (12) 240 Alien Tech Used (0) 0 Bonus (931) 931 TOTAL SCORE: 6201 Bonus ------- High Alert Combat Kills 156 Entered Garrisons 400 Used RIF Installer 500 Friendly Fire -125 Cogmind --------- Core Integrity 0/550 Matter 259/300 Energy 75/100 System Corruption 1% Temperature Cool (9) Movement Rolling (135) Ox3 Location -8/Garrison Parts ------- > --- POWER (1) -------- (None) > --- PROPULSION (2) --- Wheel Compact Wheel > --- UTILITY (6) ------ Improved Heat Sink Huge Storage Unit Visual Processing Unit Target Analyzer Core Shielding Relay Coupler [Swarmer] (2) > --- WEAPON (2) ------- High-powered Shotgun Flamer > --- INVENTORY (25) --- Deuterium Engine Light Treads Light Treads Spiked Treads Compact Wheel Heat Sink Hardened Medium Armor Plating Relay Coupler [NC] (27) Relay Coupler [NC] (21) Relay Coupler [Swarmer] (40) Relay Coupler [Swarmer] (41) Relay Coupler [Specialist] (23) High-powered Tractor Beam Riot Gun Subdweller Beam Cannon Heavy Assault Rifle Minigun Assault Cannon Grenade Launcher Grenade Launcher Datajack Mining Laser Katana Peak State ------------ > --- POWER ------------ Deuterium Engine > --- PROPULSION ------- Light Treads Light Treads > --- UTILITY ---------- Improved Heat Sink Huge Storage Unit Target Analyzer Hardened Medium Armor Plating Hardened Medium Armor Plating Hardened Medium Armor Plating > --- WEAPON ----------- Heavy Assault Rifle Subdweller Machine Gun > --- INVENTORY -------- Light Treads Light Treads Spiked Treads Heat Sink Light Armor Plating Hardened Medium Armor Plating Relay Coupler [NC] Relay Coupler [NC] Relay Coupler [NC] Relay Coupler [Swarmer] Relay Coupler [Swarmer] Relay Coupler [Swarmer] Relay Coupler [Specialist] Riot Gun Subdweller Beam Cannon Grenade Launcher Grenade Launcher Datajack Mining Laser Flamer Hammer Katana [Rating: 29] Favorites ----------- Power Ion Engine Engine Ion Engine Propulsion Compact Wheel Treads Light Treads Wheel Compact Wheel Utility Huge Storage Unit Device Seismic Detector Storage Huge Storage Unit Processor Target Analyzer Hackware Relay Coupler [Swarmer] Protection Hardened Medium Armor Plating Weapon Medium Laser Energy Gun Medium Laser Energy Cannon Subdweller Beam Cannon Ballistic Gun Barrage Gun Special Weapon Mining Laser Impact Weapon Hammer Special Melee Weapon Datajack Build | -11 -10 -10 -8 -8 -8 -8 ------- Run | Yrd Mat Sub Mat Gar Mat Gar Slots Evolved 4 | . . . 4 . . . Power . | . . . . . . . Propulsion . | . . . . . . . Utility 4 | . . . 4 . . . Weapon . | . . . . . . . Parts Attached 68 | 7 8 11 8 11 21 2 Power 6 | 1 1 . 1 1 2 . Engine 6 | 1 1 . 1 1 2 . Core . | . . . . . . . Reactor . | . . . . . . . Propulsion 14 | 2 2 . 1 4 5 . Treads 3 | . . . . 2 1 . Leg . | . . . . . . . Wheel 11 | 2 2 . 1 2 4 . Hover . | . . . . . . . Flight . | . . . . . . . Utility 21 | 2 1 1 4 4 8 1 Device 6 | 1 . 1 1 2 1 . Storage 2 | 1 1 . . . . . Processor 2 | . . . . 1 1 . Hackware 2 | . . . . . 2 . Protection 9 | . . . 3 1 4 1 Artifact . | . . . . . . . Weapon 27 | 2 4 10 2 2 6 1 Energy Gun 8 | 2 2 4 . . . . Energy Cannon 1 | . . . . 1 . . Ballistic Gun 8 | . . 1 2 1 4 . Ballistic Cannon . | . . . . . . . Launcher . | . . . . . . . Special Weapon 3 | . . 2 . . . 1 Impact Weapon 4 | . 1 3 . . . . Slashing Weapon . | . . . . . . . Piercing Weapon . | . . . . . . . Special Melee Weapon 3 | . 1 . . . 2 . Unidentified Prototypes . | . . . . . . . Parts Lost 27 | . 1 5 . 10 8 3 Power 5 | . 1 . . 1 2 1 Propulsion 7 | . . 1 . 3 3 . Utility 8 | . . 1 . 4 2 1 Weapon 7 | . . 3 . 2 1 1 Highest Loss Streak 7 | . 1 4 . 7 4 3 To Critical Strikes . | . . . . . . . Average Slot Usage (%) 94 | . 99 88 74 90 97 98 Engine 10 | . 13 14 9 8 8 9 Treads 1 | . . . . 3 4 . Wheel 18 | . 28 21 9 14 12 18 Device 11 | . 14 13 16 11 9 9 Storage 11 | . 14 14 9 9 9 9 Processor 4 | . . . . 3 10 18 Hackware 1 | . . . . . 3 9 Protection 11 | . . . 12 22 21 7 Energy Gun 10 | . 27 11 . . . . Energy Cannon 1 | . . . . 3 1 . Ballistic Gun 8 | . . . 13 14 15 16 Special Weapon 1 | . . 9 4 . . 1 Naked Turns . | . . . . . . . Heaviest Build 121 | 13 90 90 104 104 121 100 Greatest Support 40 | 32 32 26 36 36 40 26 Greatest Overweight (x) 12 | . 3 5 6 10 12 3 Average Overweight (x) 3 | . 1 3 4 4 5 3 Largest Inventory Capacity 25 | 8 25 25 25 25 25 25 Average Capacity 22 | 7 17 25 25 25 25 25 Most Carried 25 | 7 12 24 25 25 25 25 Average Carried 18 | 5 9 17 24 23 23 24 Final Capacity 25 | 8 25 25 25 25 25 25 Final Carried 25 | 7 12 24 25 22 25 23 Class Distribution -------------------- 54% | Mutant 45% | Bothacker-Mutant Dominant Class ---------------- Mutant | -10/Materials Mutant | -10/Subcaves Mutant | -8/Materials Bothacker-Mutant | -8/Garrison Bothacker-Mutant | -8/Materials Bothacker-Mutant | -8/Garrison Resources | -11 -10 -10 -8 -8 -8 -8 ----------- Run | Yrd Mat Sub Mat Gar Mat Gar Matter Collected 1732 | 270 70 112 124 566 590 . Remotely 195 | . . . . 195 . . Salvage Created 2717 | 134 360 123 149 656 1134 161 Parts 152 | 6 22 8 14 43 48 11 Haulers Intercepted 3 | . 1 . . . 2 . Recyclers Shooed 1 | . . . . . 1 . Parts Field Recycled . | . . . . . . . Retrieved Matter . | . . . . . . . Parts Self-Destructed 4 | . . 4 . . . . Prevented . | . . . . . . . Kills | -11 -10 -10 -8 -8 -8 -8 ------- Run | Yrd Mat Sub Mat Gar Mat Gar Combat Hostiles Destroyed 65 | . 12 4 6 19 20 4 Guns 57 | . 12 2 6 15 19 3 Cannons 7 | . . 1 . 4 1 1 Classes Destroyed 13 | 2 4 1 1 4 1 . Builder 2 | . . . . . 2 . Tunneler 3 | 3 . . . . . . Hauler 3 | . 1 . . . 2 . Recycler 3 | 1 . . . . 2 . Watcher 2 | . 2 . . . . . Swarmer 24 | . 9 . 4 7 4 . Grunt 21 | . 3 . . 5 9 4 Brawler 1 | . . . . 1 . . Duelist 3 | . . . . 2 1 . Sentry 10 | . . . 2 2 6 . Hunter 2 | . . . . 1 1 . Programmer 1 | . . . . 1 . . Subdweller 4 | . . 4 . . . . Best Kill Streak 7 | 2 4 2 4 7 4 4 Combat Bots Only 7 | . 4 2 4 7 3 4 Max Kills in Single Turn 1 | 1 1 1 1 1 1 1 Gunslinging . | . . . . . . . Exploded . | . . . . . . . Melee . | . . . . . . . Uniques/NPCs Destroyed . | . . . . . . . Combat | -11 -10 -10 -8 -8 -8 -8 -------- Run | Yrd Mat Sub Mat Gar Mat Gar Hostile Shots Fired 407 | . 43 23 54 120 145 22 Missed 103 | . 9 5 19 29 35 6 Damage Taken 3766 | . 295 374 232 989 1617 259 Core 715 | . 76 86 32 252 209 60 Absorbed by Shields 298 | . . . 140 158 . . Redirected to Shielding 152 | . . . 6 119 22 5 Core Remaining (%) 67 | 100 . 35 . . . . Volleys Fired 245 | 10 41 16 19 65 88 6 Largest 2 | 2 2 2 2 2 2 2 Hottest 125 | 100 100 100 100 108 110 125 Shots Fired 474 | 20 82 28 37 126 168 13 Gun 440 | 20 82 26 36 110 155 11 Cannon 29 | . . . . 16 13 . Launcher . | . . . . . . . Special 5 | . . 2 1 . . 2 Kinetic 318 | . . 6 36 110 155 11 Thermal 156 | 20 82 22 1 16 13 2 Explosive . | . . . . . . . Electromagnetic . | . . . . . . . Robot Hit Streak 19 | 4 8 19 7 11 16 5 Robot Miss Streak 6 | 1 4 1 2 6 3 1 Penetration Max . | . . . . . . . Secondary Targets 8 | . 3 . 1 2 . 2 Max Gunslinging Chain 1 | . 1 . 1 1 . 1 Shots Hit Robots 315 | 14 46 24 22 69 130 10 Core Hits 130 | 5 21 5 7 30 52 10 Critical Kills 6 | . . . . 1 3 2 Critical Parts Destroyed 3 | . . . . 1 2 . Critical Strikes 13 | 1 1 2 . 2 5 2 Burn 4 | 1 1 2 . . . . Destroy 9 | . . . . 2 5 2 Melee Attacks 40 | . 4 25 . . 11 . Impact 29 | . 4 25 . . . . Slashing . | . . . . . . . Piercing . | . . . . . . . Sneak Attacks 5 | . . . . . 5 . Combat Hostiles . | . . . . . . . Follow-up Attacks . | . . . . . . . Damage Inflicted 5383 | 175 602 376 461 1405 2191 173 Guns 4843 | 175 590 352 461 1131 1972 162 Cannons 493 | . . . . 274 219 . Explosions . | . . . . . . . Melee . | . . . . . . . Ramming 12 | . 12 . . . . . Kinetic 3861 | . . 135 461 1131 1972 162 Thermal 1510 | 175 590 241 . 274 219 11 Explosive . | . . . . . . . Electromagnetic . | . . . . . . . Impact . | . . . . . . . Slashing . | . . . . . . . Piercing . | . . . . . . . Highest Corruption 1 | . . . . 1 1 1 Average Corruption 1 | . . . . 1 1 1 Corruption Purged . | . . . . . . . Corruption Blocked . | . . . . . . . Effects 17 | . . . . 4 12 1 Message Errors 7 | . . . . 2 5 . Matter Fused 2 | . . . . 1 1 . Heat Flow Errors 2 | . . . . . 2 . Energy Discharges 2 | . . . . . 2 . Misfires 3 | . . . . 1 1 1 Weapon Failures 1 | . . . . . 1 . Overload Shots . | . . . . . . . Overflow Damage 11 | . . . . . 11 . Projectiles 11 | . . . . . 11 . Explosions . | . . . . . . . Melee . | . . . . . . . Knockbacks . | . . . . . . . Impact . | . . . . . . . Kinetic . | . . . . . . . Secondary . | . . . . . . . Self-Inflicted Damage 5 | . 5 . . . . . Shots . | . . . . . . . Rammed 7 | . 6 . . . 1 . Targets Rammed 7 | . 6 . . . 1 . Kicked . | . . . . . . . Crushed . | . . . . . . . Highest Temperature 312 | 117 312 . 38 281 242 6 Average Temperature 76 | 47 104 . 15 59 95 3 Received Heat Transfer 1191 | . 54 87 24 333 531 162 Effects 1 | . . . . 1 . . Interference 1 | . . . . 1 . . Siege Activations . | . . . . . . . Robots Corrupted . | . . . . . . . Combat Hostiles . | . . . . . . . Parts Fried . | . . . . . . . Impact Corruptions 1 | . 1 . . . . . Robots Melted 1 | . . 1 . . . . Combat Hostiles 1 | . . 1 . . . . Parts Melted 9 | 1 4 4 . . . . Heat Transferred 3978 | 592 1813 827 . 370 296 80 Parts Sabotaged . | . . . . . . . Parts Stolen . | . . . . . . . Parts Stripped . | . . . . . . . Power Chain Reactions . | . . . . . . . Alert | -11 -10 -10 -8 -8 -8 -8 ------- Run | Yrd Mat Sub Mat Gar Mat Gar Peak Influence 612 | 20 329 . 213 612 464 167 Initial 298 | . 13 . . 138 298 117 Average 209 | 6 117 . 109 404 241 123 Maximum Alert Level 2 | . 1 . 1 2 2 . Low Security (%) 52 | 100 81 . 75 12 34 100 Level 1 37 | . 18 . 24 36 60 . Level 2 10 | . . . . 51 5 . Level 3 . | . . . . . . . Level 4 . | . . . . . . . Level 5 . | . . . . . . . High Security . | . . . . . . . Max Security . | . . . . . . . Squads Dispatched 5 | . 2 . . . 3 . Investigation 2 | . 1 . . . 1 . Extermination . | . . . . . . . Reinforcement 3 | . 1 . . . 2 . Assault . | . . . . . . . Garrison . | . . . . . . . Intercept . | . . . . . . . Searches Triggered . | . . . . . . . Construction Impeded 1 | . . . . . 1 . Haulers Reinforced . | . . . . . . . Active Scanning Responses . | . . . . . . . Cargo Convoy Interrupts . | . . . . . . . Stealth | -11 -10 -10 -8 -8 -8 -8 --------- Run | Yrd Mat Sub Mat Gar Mat Gar Distress Signals 5 | . 1 . . . 4 . Communications Jammed . | . . . . . . . Distress Signals . | . . . . . . . Times Spotted 93 | . 22 4 7 18 37 5 Peak Tracking Total 5 | . 4 2 4 4 4 5 Tactical Retreats 4 | . 2 . 1 1 . . Traps | -11 -10 -10 -8 -8 -8 -8 ------- Run | Yrd Mat Sub Mat Gar Mat Gar Traps Triggered 6 | . 1 . . 4 1 . Indirectly . | . . . . . . . Trap Hack Attempts 16 | . 16 . . . . . Triggered . | . . . . . . . Disarmed . | . . . . . . . Reprogrammed 1 | . 1 . . . . . Reused . | . . . . . . . Traps Extracted . | . . . . . . . Installed . | . . . . . . . Triggered . | . . . . . . . Machines | -11 -10 -10 -8 -8 -8 -8 ---------- Run | Yrd Mat Sub Mat Gar Mat Gar Machines Disabled 2 | . . . . 1 1 . Max in Single Turn 1 | . . . . 1 1 . Garrison Relay 1 | . . . . 1 . . Machines Repaired . | . . . . . . . Machines Dismantled . | . . . . . . . Machines Sabotaged . | . . . . . . . Overloaded Fab Kills . | . . . . . . . Hacking | -11 -10 -10 -8 -8 -8 -8 --------- Run | Yrd Mat Sub Mat Gar Mat Gar Machines Accessed 20 | . 5 1 4 2 7 1 Terminals 17 | . 5 . 3 2 6 1 Fabricators . | . . . . . . . Repair Stations . | . . . . . . . Recycling Units . | . . . . . . . Scanalyzers . | . . . . . . . Garrison Access 2 | . . . 1 . 1 . Total Hacks 51 | . 13 2 9 3 23 1 Successful 35 | . 8 2 6 1 18 . Failed 16 | . 5 . 3 2 5 1 Catastrophic 3 | . 1 . . . 1 1 Database Lockouts . | . . . . . . . Manual 22 | . 7 . 3 . 12 . Terminals 46 | . 13 . 7 3 22 1 Fabricators . | . . . . . . . Repair Stations . | . . . . . . . Recycling Units . | . . . . . . . Scanalyzers . | . . . . . . . Garrison Access 3 | . . . 2 . 1 . Terminal Hacks 28 | . 6 2 3 1 16 . Record 2 | . . 2 . . . . Part Schematic 1 | . . . . . 1 . Prototype ID Bank 6 | . 2 . 1 . 3 . Emergency Access Points 1 | . . . . . 1 . Unreport Threat 1 | . . . . . 1 . Locate Traps 4 | . 2 . . . 2 . Maintenance Status 1 | . . . . . 1 . Surveillance Status 1 | . . . . . 1 . Patrol Status 1 | . . . . . 1 . Garrison Status 1 | . . . . . 1 . Hauler Manifests 3 | . 1 . 1 . 1 . Zone Layout 5 | . 1 . 1 . 3 . Patrol Navigation 1 | . . . . 1 . . Fabricator Hacks . | . . . . . . . Repair Station Hacks . | . . . . . . . Recycling Unit Hacks . | . . . . . . . Scanalyzer . | . . . . . . . Garrison Access Hacks 2 | . . . 1 . 1 . Unlock Access 2 | . . . 1 . 1 . Unauthorized Hacks 5 | . 2 . 2 . 1 . Terminals 5 | . 2 . 2 . 1 . Botnet 5 | . 2 . 2 . 1 . Fabricators . | . . . . . . . Repair Stations . | . . . . . . . Recycling Units . | . . . . . . . Scanalyzers . | . . . . . . . Garrison Access . | . . . . . . . Data Cores Recovered . | . . . . . . . Used . | . . . . . . . Hacking Detections 13 | . 4 . 2 1 5 1 Full Trace Events . | . . . . . . . Feedback Events . | . . . . . . . Feedback Blocked . | . . . . . . . Robot Schematics Acquired . | . . . . . . . Robots Built . | . . . . . . . Authchips . | . . . . . . . Time . | . . . . . . . Total Robot Build Rating . | . . . . . . . Part Schematics Acquired 1 | . . . . . 1 . Parts Built . | . . . . . . . Authchips . | . . . . . . . Time . | . . . . . . . Total Part Build Rating . | . . . . . . . Parts Repaired . | . . . . . . . Time . | . . . . . . . Parts Recycled . | . . . . . . . Recycled Matter . | . . . . . . . Retrieved Matter . | . . . . . . . Retrieved Components . | . . . . . . . Parts Scanalyzed . | . . . . . . . Part Schematics Acquired . | . . . . . . . Parts Damaged . | . . . . . . . Bothacking | -11 -10 -10 -8 -8 -8 -8 ------------ Run | Yrd Mat Sub Mat Gar Mat Gar Used RIF Installer 1 | . . . . 1 . . Robots Hacked 8 | . . . . . 8 . Non-combat 4 | . . . . . 4 . Combat 4 | . . . . . 4 . Robot Hacks Applied 9 | . . . . . 9 . parse_system 3 | . . . . . 3 . drop_inventory 1 | . . . . . 1 . purge_threat 1 | . . . . . 1 . overwrite_iff 2 | . . . . . 2 . formatsys_low 1 | . . . . . 1 . formatsys_high 1 | . . . . . 1 . Relay Couplers Released 7 | . . . . 7 . . Machine Destruction 4 | . . . . 4 . . Programmers 3 | . . . . 3 . . Attached 2 | . . . . . 2 . Fabnet Peak Effective % . | . . . . . . . Robots Rewired . | . . . . . . . Allies Hacked . | . . . . . . . Hacks Repelled . | . . . . . . . Allies | -11 -10 -10 -8 -8 -8 -8 -------- Run | Yrd Mat Sub Mat Gar Mat Gar Total Allies 4 | . . . . . 4 . Largest Group 3 | . . . . . 3 1 Highest-Rated Group 36 | . . . . . 36 26 Highest-Rated Ally 26 | . . . . . 26 26 Total Orders . | . . . . . . . Ally Attacks 13 | . . . . . 13 . Total Damage 57 | . . . . . 57 . Kills . | . . . . . . . Allies Corrupted . | . . . . . . . Allies Melted . | . . . . . . . Intel | -11 -10 -10 -8 -8 -8 -8 ------- Run | Yrd Mat Sub Mat Gar Mat Gar Robot Analysis Total . | . . . . . . . Derelict Logs Recovered 1 | . . 1 . . . . Drone Launches . | . . . . . . . Drone Recoveries . | . . . . . . . Exploration | -11 -10 -10 -8 -8 -8 -8 ------------- Run | Yrd Mat Sub Mat Gar Mat Gar Turns Passed 5036 | 123 1424 817 279 724 1594 75 Spaces Moved 2214 | 72 584 428 115 288 687 40 Core 3 | 3 . . . . . . Treads 36 | . . . . . 36 . Legs . | . . . . . . . Wheels 2175 | 69 584 428 115 288 651 40 Hover . | . . . . . . . Flight . | . . . . . . . Fastest Speed 50 | 50 90 135 129 129 135 135 Average Speed 148 | 97 107 153 174 165 174 135 Slowest Speed 400 | 100 135 175 190 230 400 135 Overloaded Moves . | . . . . . . . Propulsion Burnouts . | . . . . . . . Robots Hopped . | . . . . . . . Cave-ins Triggered . | . . . . . . . Exploration Rate (%) 39 | 4 86 26 16 48 78 17 Regions Visited 6 Branch Regions 1 Pre-discovered Areas . | . . . . . . . Known Exits Taken 2 | . . . 1 . 1 . Unknown Exits Taken 3 | 1 1 1 . . . . Scrap Searched 2 | . . 2 . . . . Spaces Dug 3 | . 1 1 1 . . . Terrain Destroyed 13 | . 1 1 2 . 9 . Melee 2 | . 1 1 . . . . Projectile 11 | . . . 2 . 9 . AOE . | . . . . . . . Terrain Rammed . | . . . . . . . Walls Destroyed . | . . . . . . . Machines Disabled . | . . . . . . . Actions | -11 -10 -10 -8 -8 -8 -8 --------- Run | Yrd Mat Sub Mat Gar Mat Gar Total 3426 | 100 1291 506 156 417 908 48 Wait 745 | 5 617 14 10 22 77 . Move 2209 | 71 583 427 114 287 687 40 Hop . | . . . . . . . Pick Up 55 | 7 11 13 3 8 13 . Fast Attach 20 | 7 . 2 4 3 4 . Attach 22 | . 1 2 1 7 9 2 Detach 1 | . . . . . 1 . Swap 26 | . 7 7 3 1 8 . Drop 17 | . 5 . 2 3 7 . Fire 245 | 10 41 16 19 65 88 6 Melee 40 | . 4 25 . . 11 . Ram 6 | . 6 . . . . . Kick . | . . . . . . . Crush 1 | . . . . . 1 . Escape Stasis 21 | . . . . 21 . . Rewire 2 | . . . . . 2 . Trap 16 | . 16 . . . . . Miscellaneous . | . . . . . . . Route ------- -11/Scrapyard -10/Materials (discovered 5 exits: [*Mat x2] / [*Min x2] / *Sub) -10/Subcaves -8/Materials -8/Garrison -8/Materials (discovered 5 exits: [*Fac x3] / [*Sto] / Gar) -8/Garrison History --------- Turn | Location | Event 2 | -11/Scrapyard | Met Revision 17 11 | -11/Scrapyard | Discovered new exit (range 15) 124 | -11/Scrapyard | Entered Materials 320 | -10/Materials | Discovered new exit (range 16) 321 | -10/Materials | Discovered new exit (range 14) 340 | -10/Materials | Build established: Mutant 579 | -10/Materials | Discovered new exit (range 5) 709 | -10/Materials | Discovered new exit (range 4) 1544 | -10/Materials | Discovered new exit (range 3) 1548 | -10/Materials | Entered Subcaves 1562 | -10/Subcaves | A swath of the cavern ceiling suddenly collapsed 1767 | -10/Subcaves | Visited Clippyterm 1771 | -10/Subcaves | Learned Factory trap positions 1803 | -10/Subcaves | Core integrity fell below 50% 1869 | -10/Subcaves | A swath of the cavern ceiling suddenly collapsed 2022 | -10/Subcaves | Lost 4 parts (1n3w) 2236 | -10/Subcaves | Shifting Twisted Machinery released Riot Gun 2238 | -10/Subcaves | Learned Materials terminal intel 2243 | -10/Subcaves | Shifting Twisted Machinery released Hvy. Battle Rifle 2245 | -10/Subcaves | Shifting Twisted Machinery released Barrage Gun 2256 | -10/Subcaves | Shifting Twisted Machinery released Barrage Gun 2332 | -10/Subcaves | Discovered new exit (range 10) 2365 | -10/Subcaves | Entered Materials 2365 | -8/Materials | Evolved 4 slots: Utility x4 2366 | -8/Materials | Loaded intel: 12 terminal locations 2640 | -8/Materials | Identified exit to Garrison 2644 | -8/Materials | Entered Garrison 2670 | -8/Garrison | Installed Relay Interface Framework 2677 | -8/Garrison | Triggered checkpoint 2731 | -8/Garrison | Garrison Relay disabled 2864 | -8/Garrison | Triggered checkpoint 2875 | -8/Garrison | Lost 3 parts (1n2u) 3036 | -8/Garrison | Destroyed 7 combat bots 3043 | -8/Garrison | Build established: Bothacker-Mutant 3120 | -8/Garrison | Lost 7 parts (1p2n2u2w) 3126 | -8/Garrison | Core integrity fell below 50% 3322 | -8/Garrison | Discovered new exit (range 13) 3368 | -8/Garrison | Entered Materials 3662 | -8/Materials | Lost 4 parts (1p1n1u1w) 3916 | -8/Materials | Discovered new exit (range 13) 4311 | -8/Materials | Discovered new exit (range 16) 4333 | -8/Materials | Core integrity fell below 20% 4634 | -8/Materials | Discovered new exit (range 16) 4938 | -8/Materials | Discovered new exit (range 4) 4962 | -8/Materials | Identified exit to Garrison 4962 | -8/Materials | Entered Garrison 4962 | -8/Garrison | Accompanied by 1 ally 5016 | -8/Garrison | Triggered checkpoint 5018 | -8/Garrison | Triggered checkpoint 5037 | -8/Garrison | Destroyed by G-47 Trooper with Particle Gun Last Messages --------------- alarm sounds. 05019_ G-47 Trooper suffers critical hit (Destroy). 05019_ G-47 Trooper destroyed. 05019_ Switching to secondary target: G-47 Trooper. 05023_ Lgt. Armor Plating destroyed. 05025_ G-47 Trooper suffers critical hit (Destroy). 05025_ G-47 Trooper destroyed. 05025_ Switching to secondary target: G-47 Trooper. 05026_ Sub. Machine Gun destroyed. 05033_ System corrupted: FCS attempts to trigger Hpw. Shotgun. 05033_ System corrupted: Hpw. Shotgun misfires. 05033_ G-47 Trooper destroyed. 05033_ Critical hit (Burn: +37). 05033_ Deuterium Engine destroyed. 05034_ G-47 Trooper destroyed. Map ----- +----------------------------------------------------+ | ?????????????????????????????????????????????????? | | ?????????????????????????????????????????????????? | | ?????????????????????????????????????????????????? | | ?????????????????????????????????????????????????? | | ?????????????????????????????????????????????????? | | ?????????????????????????????????????????????????? | | ?????????????????????????????????????????????????? | | ?????????????????????????????????????????????????? | | ?????????????????????????????????????????????????? | | ?????????????????????????????????????????????????? | | ?????????????????????????????????????????????????? | | ?????????????????????????????????????????????????? | | ??????????????????????##++#??????????????????????? | | ?????????????????????? ?? ???????????????????? | | ?????????????????????? ?? ?????? +???????????? | | ?????????????????????? ? ?????? #???????????? | | ??????????????????????# #? ???#? #???????????? | | ????????????????????### ## ?? ## #???????????? | | ????????????????????# ?? ^ "???????????? | | ????????????????????# ?? ^^ "???????????? | | ????????????????????? ?? ^^ ?????????????? | | ?????????????????????? g= ?? ^ ???????????????? | | ??????????????????????#%=!#? #??? #???????????? | | ??????????????????????#!% ## ## ####????????? | | ??????????????????????+ ^^ ??????? | | ??????????????????????+ @ **= ^^ ??????? | | ??????????????????????# [%%! #???????????? | | ??????????????????????# ##[ ## ##???????????? | | ??????????????????????# #?? #????????????????? | | ??????????????????????# #???###????????????????? | | ??????????????????????+ #??????????????????????? | | ??????????????????????# #??????????????????????? | | ??????????????????????# #??????????????????????? | | ?????????????????###??# #??????????????????????? | | #######+######++##T#### #??????????????????????? | | #??????????????????????? | | #??????????????????????? | | #??????????????????????? | | +#######+#######+##########??????????????????????? | | ^#?????#^#?????#^#???????????????????????????????? | | ^#?????#^#?????#^#???????????????????????????????? | | #?????# #?????# #???????????????????????????????? | | #?????# #?????# #???????????????????????????????? | | #?????# #?????# #???????????????????????????????? | | #?????# #?????# #???????????????????????????????? | | #?????# #?????# #???????????????????????????????? | | #?????# #?????# #???????????????????????????????? | | ??????? ??????? ????????????????????????????????? | | ??????? ??????? ????????????????????????????????? | | ??????? ??????? ????????????????????????????????? | +----------------------------------------------------+ Best States ------------- Heat Dissipation 45 Coolant Potential 50 Energy Generation 14 Energy Capacity 275 Matter Stores 300 Matter Capacity 300 Sight Range 18 Terrain Scan Density 10 Armor Coverage 675 Power Shielding 66 Propulsion Shielding 33 Evasion (%) 42 Target Analysis 5 Recoil Reduction 2 Relay Coupler Types 1 Relay Coupler Value 29 Item Schematics ----------------- Arm. Wheel | -8/Materials | Hacked Robot Schematics ------------------ None Fabricated ------------ Nothing Alien Tech Used ----------------- None Achievements -------------- Hehehe Challenges ------------ None Game ------ Seed BehemothBarrageCarapace Manual? 0 Play Time 00:53:43 Cumulative 62.3 hours Start 2024.05.02 @ 14:58:46 End 2024.05.02 @ 17:59:19 Sessions 5 Manual Loads 0 Difficulty Rogue Special Mode None Game No. 37 Rogue 37 Adventurer 0 Explorer 0 Win Type - Total 1 Types 1/0/0/0/0/0/0/0/0 Lore% 27 Gallery% 41 Achievement% 33 Wizard Run 0 Options --------- Layout 1 ASCII 0 Keyboard 0 Movement Numpad Keybinds 0 Fullscreen 2 Font 32/SmallcapsGlow Map View 50x40 Zoom Use 0% Tactical HUD 1 Map Filters NONE Filters NONE Steam 1 RUN: 105ea52a-956e-4791-b500-44c65980f28e